bitfinex-derivatives/quotes_ETHF0:USTF0_20260201
["timestamp","ask_amount","ask_price","bid_price","bid_amount"]
[1769967494486,0.21752,2300.8,2300.0,4.3432]
[1769967494891,0.21752,2300.8,2300.1,2.1004263]
[1769967495194,0.21752,2300.8,2300.4,2.47082364]
[1769967495683,0.21752,2300.8,2300.5,2.47082364]
[1769967495888,0.00439745,2301.0,2299.8,0.00328164]
[1769967495889,0.46649174,2300.4,2299.8,0.00328164]
[1769967496087,0.46649174,2300.4,2299.3,4.26892416]
[1769967496088,0.21759,2300.1,2299.2,2.47082364]
[1769967496294,0.21759,2300.1,2299.5,2.47082364]
[1769967496992,0.21759,2300.1,2299.5,2.47494384]
[1769967498493,0.4632101,2300.7,2299.5,2.47494384]
[1769967498688,0.2176,2299.9,2299.5,0.0041202]
[1769967499689,0.2176,2299.9,2299.5,2.47494384]
[1769967499893,0.21762,2299.8,2299.1,2.47082364]
[1769967500289,0.21762,2299.8,2299.2,2.1004263]
[1769967500793,0.21762,2299.8,2299.2,0.00347916]
[1769967501493,0.21762,2299.8,2299.3,2.47082364]
[1769967501693,0.46275288,2300.4,2299.2,2.10390546]
[1769967502294,0.21761,2299.8,2299.2,2.10390546]
[1769967502592,0.21761,2299.8,2299.3,2.47082364]
[1769967502793,0.21761,2299.8,2299.4,2.47082364]
[1769967504488,0.45291906,2299.8,2299.3,2.1004263]
[1769967504694,2.4992643,2299.9,2297.0,0.21787]
[1769967504988,0.21771,2298.8,2297.4,2.4992643]
[1769967505190,2.552,2299.8,2297.2,0.46724724]
[1769967505583,0.21776,2298.3,2297.2,0.47184546]
[1769967506589,0.21776,2298.3,2297.3,2.52144283]
[1769967506991,0.21776,2298.3,2297.5,2.52144283]
[1769967507193,0.21776,2298.3,2297.6,2.98869007]
[1769967507389,0.21776,2298.3,2297.6,2.52144283]
[1769967507596,0.00251062,2298.9,2297.7,2.98869007]
[1769967507793,0.21777,2298.1,2297.4,2.98869007]
[1769967507991,0.22226048,2298.1,2297.4,2.98869007]
[1769967508493,0.00251062,2299.0,2297.6,2.5211076]
[1769967508697,0.21777,2298.2,2297.6,2.5211076]
[1769967508895,0.21777,2298.2,2297.8,2.5211076]
[1769967509293,3.916,2299.1,2297.8,2.5211076]
[1769967509294,0.21773,2298.6,2297.8,2.76609436]
[1769967509499,0.21775,2298.4,2297.8,2.76609436]
[1769967509899,0.21777,2298.2,2297.5,2.5211076]
[1769967510399,0.22213152,2298.2,2297.6,2.7676849]
[1769967510601,0.22213152,2298.2,2297.6,2.52269814]
[1769967510804,0.22213152,2298.2,2297.8,2.52269814]
[1769967511099,0.21771,2298.8,2297.8,2.52269814]
[1769967511399,0.21772,2298.7,2298.0,2.52269814]
[1769967512003,0.21772,2298.7,2298.2,2.52269814]
[1769967512296,6.47,2299.9,2298.2,2.52269814]
[1769967512497,6.47,2299.9,2298.2,2.7676849]
[1769967512699,0.21768,2299.1,2298.2,2.7676849]
[1769967513296,0.21758,2300.2,2298.4,2.52269814]
[1769967513492,0.35607634,2300.3,2298.4,2.52269814]
[1769967513696,11.82873083,2301.0,2298.6,2.52269814]
[1769967513891,0.21759,2300.0,2298.6,2.52269814]
[1769967514096,0.21759,2300.0,2298.8,2.52269814]
[1769967514395,0.22167467,2300.0,2298.8,2.52269814]
[1769967514601,0.22167467,2300.0,2299.0,2.52269814]
[1769967514799,0.22167467,2300.0,2299.0,2.52702699]
[1769967515000,0.22167467,2300.0,2299.2,2.52269814]
[1769967515202,0.43121734,2300.0,2299.0,0.00432885]
[1769967515395,0.43121734,2300.0,2299.0,0.24931561]
[1769967516399,0.21765,2299.5,2299.0,0.24931561]
[1769967517195,0.21765,2299.5,2299.1,2.47082364]
[1769967519601,0.43512032,2300.0,2298.9,0.24498676]
[1769967519904,0.21768,2299.1,2298.1,0.24498676]
[1769967520098,3.92108467,2300.0,2297.8,3.917]
[1769967520099,0.00408467,2300.0,2297.9,4.10089816]
[1769967520404,0.00408467,2300.0,2298.5,3.8559114]
[1769967520600,0.00408467,2300.0,2298.5,3.85988307]
[1769967520902,0.00408467,2300.0,2298.6,0.24498676]
[1769967521203,0.21761,2299.9,2298.6,0.24498676]
[1769967521598,0.21761,2299.9,2298.7,2.28946871]
[1769967521994,0.21761,2299.9,2298.9,2.28946871]
[1769967522399,0.21761,2299.9,2299.1,2.28946871]
[1769967522905,0.21761,2299.9,2299.3,2.28946871]
[1769967523098,0.21762,2299.7,2299.3,2.28946871]
[1769967523299,0.21762,2299.7,2299.3,2.53445547]
[1769967524006,0.21744,2301.7,2300.0,2.28946871]
[1769967524203,0.21744,2301.7,2300.3,2.28946871]
[1769967524397,0.21744,2301.7,2300.5,2.28946871]
[1769967524597,0.21744,2301.7,2300.7,2.28946871]
[1769967524803,0.21744,2301.6,2300.7,2.2932348]
[1769967525607,0.21746,2301.4,2300.7,2.2932348]
[1769967527008,0.21747,2301.3,2300.7,2.2932348]
[1769967528004,7.56313043,2301.1,2300.7,2.2932348]
[1769967528204,0.21747,2301.3,2300.7,2.2932348]
[1769967528905,0.21747,2301.3,2300.4,3.917]
[1769967529408,2.96508837,2301.3,2300.4,3.917]
[1769967529906,2.96508837,2301.3,2300.4,3.92078941]
[1769967530303,2.74761837,2300.5,2299.4,3.86818228]
[1769967530612,2.41092944,2303.2,2299.7,3.86818228]
[1769967530909,3.916,2304.1,2301.1,1.42185705]
[1769967530910,2.41092944,2302.9,2301.1,1.42185705]
[1769967531107,2.552,2304.0,2301.3,1.42185705]
[1769967531108,2.41092944,2302.8,2301.3,1.42185705]
[1769967531508,2.41092944,2302.5,2301.3,1.42185705]
[1769967531710,0.21737,2302.4,2301.3,1.4260598]
[1769967531913,2.74761837,2302.3,2301.3,1.4260598]
[1769967532104,2.41092944,2302.1,2301.3,0.00420275]
[1769967532415,0.21741,2302.0,2301.2,3.916]
[1769967532813,2.41092944,2302.3,2301.2,5.32485325]
[1769967533007,2.74761837,2302.0,2301.2,3.916]
[1769967533207,0.00559162,2302.5,2301.3,1.40885325]
[1769967536712,0.21734,2302.7,2301.3,1.40885325]
[1769967537114,2.41092944,2303.1,2301.3,1.40885325]
[1769967537711,2.41529587,2303.1,2301.3,1.40885325]
[1769967537913,0.00436643,2303.1,2301.3,1.40885325]
[1769967538816,2.41529587,2303.1,2301.3,1.40885325]
[1769967539620,2.63259587,2303.1,2301.3,1.40885325]
[1769967540518,2.41092944,2302.8,2301.3,1.40885325]
[1769967540711,0.21735,2302.6,2301.3,1.40885325]
[1769967541017,2.62830944,2302.3,2301.3,1.40885325]
[1769967541224,2.41092944,2302.1,2301.2,3.9192929]
[1769967541722,2.74761837,2301.9,2301.2,3.9192929]
[1769967542122,2.74761837,2301.8,2301.2,3.9192929]
[1769967542320,2.62831944,2302.1,2301.2,3.9192929]
[1769967542515,2.74761837,2301.8,2301.2,3.9192929]
[1769967542711,2.62831944,2302.1,2301.2,3.9192929]
[1769967542712,2.74761837,2302.0,2301.2,3.9192929]
[1769967542916,0.21736,2302.5,2301.3,1.33621985]
[1769967543120,2.73963726,2302.5,2301.3,1.33621985]
[1769967543313,2.9161672,2302.4,2301.3,1.33621985]
[1769967544016,0.39388994,2302.2,2301.3,1.33621985]
[1769967544216,2.9161672,2302.3,2301.3,1.33621985]
[1769967544416,0.39388994,2302.2,2301.3,1.33621985]
[1769967544816,0.39388994,2302.1,2301.3,1.33621985]
[1769967545822,0.39388994,2302.1,2301.3,5.68921985]
[1769967546017,0.39388994,2302.1,2301.2,3.9192929]
[1769967546018,2.518396,2302.1,2301.2,3.9192929]
[1769967546223,2.52227726,2302.2,2301.2,3.9192929]
[1769967546520,2.52227726,2302.0,2301.2,3.9192929]
[1769967546817,0.60352742,2302.1,2301.2,3.9192929]
[1769967547118,0.60352742,2302.1,2301.3,4.353]
[1769967547323,0.60352742,2302.1,2301.2,3.9192929]
[1769967547717,0.38612742,2302.0,2301.2,3.9192929]
[1769967548126,0.38612742,2301.8,2301.2,3.9192929]
[1769967548420,0.38612742,2301.9,2301.2,3.9192929]
[1769967548619,0.38612742,2301.8,2301.2,3.9192929]
[1769967549018,0.38612742,2301.6,2301.2,3.9192929]
[1769967549219,0.38612742,2301.8,2301.2,3.9192929]
[1769967549423,0.38612742,2301.7,2301.2,3.9192929]
[1769967549726,0.38612742,2301.5,2301.2,2.53349565]
[1769967549920,2.52449368,2301.6,2301.2,2.53349565]
[1769967550123,0.38612742,2301.4,2301.2,2.53349565]
[1769967550321,2.02449368,2301.6,2301.2,2.53349565]
[1769967550626,7.70158127,2303.4,2301.2,2.53349565]
[1769967550824,0.21738,2302.3,2301.2,2.53349565]
[1769967551227,0.21992052,2302.3,2301.2,2.53349565]
[1769967552222,2.34002951,2302.2,2301.2,2.53349565]
[1769967552626,0.21992052,2302.3,2301.3,0.45469413]
[1769967553228,0.21992052,2302.3,2301.3,7.43239056]
[1769967553526,2.55735951,2302.8,2301.5,3.02125549]
[1769967553730,2.55735951,2302.8,2301.5,7.43239056]
[1769967554327,2.34002951,2302.6,2301.6,6.97769643]
[1769967555229,2.34002951,2302.6,2301.7,4.41113507]
[1769967555429,2.34002951,2302.6,2301.7,6.97769643]
[1769967555724,2.34002951,2302.6,2301.7,4.41113507]
[1769967555931,2.34002951,2302.6,2301.7,6.97769643]
[1769967557132,2.34002951,2302.6,2301.8,4.41113507]
[1769967557730,2.34002951,2302.3,2301.6,4.41113507]
[1769967557928,1.77460304,2302.1,2301.4,4.44244978]
[1769967558129,1.77460304,2302.1,2301.4,2.56656136]
[1769967558331,1.77460304,2302.1,2301.3,2.56656136]
[1769967558633,0.2174,2302.1,2301.4,4.42926634]
[1769967558825,0.2174,2302.1,2301.3,7.69899609]
[1769967559031,0.2174,2302.1,2301.4,6.99581616]
[1769967559230,0.2174,2302.1,2301.4,2.56656136]
[1769967559632,0.2174,2302.1,2301.5,4.43263594]
[1769967559836,0.2174,2302.1,2301.4,2.56656136]
[1769967560137,2.55742951,2302.1,2301.5,6.99918506]
[1769967560339,2.55742951,2302.1,2301.4,2.56656136]
[1769967560630,2.55742951,2302.1,2301.5,4.43778971]
[1769967560836,2.55742951,2302.1,2301.4,2.56656136]
[1769967561036,2.55742951,2302.1,2301.5,4.43778994]
[1769967561239,2.55742951,2302.1,2301.4,2.56656136]
[1769967561740,2.34002951,2301.9,2301.3,2.56656136]
[1769967561931,2.34002951,2301.9,2301.4,4.43803588]
[1769967562237,0.21741,2302.0,2301.3,2.56656136]
[1769967562439,0.21741,2302.0,2301.4,4.437961]
[1769967562641,2.55743951,2302.0,2301.3,2.56656136]
[1769967563840,2.55743951,2302.0,2301.4,4.40440502]
[1769967564037,0.00513495,2301.9,2300.5,1.71418114]
[1769967564234,0.00513495,2301.2,2299.9,2.52449368]
[1769967564541,2.58870537,2300.5,2299.9,2.52449368]
[1769967565034,2.58870537,2300.5,2299.9,2.53001224]
[1769967565235,0.21754,2300.6,2299.9,2.53001224]
[1769967565236,2.80624537,2300.6,2299.9,2.53001224]
[1769967565535,0.21757,2300.2,2299.2,7.435]
[1769967565736,2.80627537,2300.2,2299.3,8.2449316]
[1769967566235,0.2176,2300.0,2299.2,7.435]
[1769967566633,0.2176,2300.0,2299.3,8.2449316]
[1769967566634,0.22232567,2300.0,2299.3,8.2449316]
[1769967567035,0.22232567,2300.0,2299.4,8.2449316]
[1769967567235,0.22232567,2300.0,2299.3,8.2449316]
[1769967567536,0.22232567,2300.0,2299.4,2.52449368]
[1769967567735,0.22232567,2300.0,2299.5,2.52449368]
[1769967569241,0.00472567,2300.0,2299.5,10.76942528]
[1769967569437,0.21757,2300.2,2299.6,2.52449368]
[1769967570638,0.22072375,2300.2,2299.6,2.52449368]
[1769967573143,0.22072375,2300.2,2299.9,2.52449368]
[1769967573545,0.22072375,2300.2,2300.0,2.52449368]
[1769967574033,0.16502469,2300.2,2300.1,8.2449316]
[1769967574238,0.16502469,2300.2,2300.1,10.72117932]
[1769967574438,0.16502469,2300.2,2299.7,2.52449368]
[1769967574834,0.16502469,2300.2,2299.3,2.52449368]
[1769967575038,0.16502469,2300.2,2299.5,2.52449368]
[1769967575438,0.16502469,2300.2,2299.5,10.72117932]
[1769967576341,0.16502469,2300.2,2299.6,2.52449368]
[1769967576848,0.21758,2300.1,2299.6,2.52449368]
[1769967578147,0.21758,2300.1,2299.2,0.00431125]
[1769967578148,1.86559925,2299.9,2299.2,0.00431125]
[1769967578344,0.21766,2299.3,2298.3,3.915]
[1769967578746,0.21766,2299.3,2298.5,8.19668564]
[1769967579049,0.21768,2299.1,2298.5,8.19668564]
[1769967579248,0.21768,2299.1,2297.9,2.72526007]
[1769967579446,0.21768,2299.1,2298.5,0.00398786]
[1769967579944,40.69186858,2299.6,2298.7,8.19668564]
[1769967580146,2.55916579,2299.7,2298.6,2.32356014]
[1769967580346,2.55916579,2299.6,2298.6,2.32356014]
[1769967580550,0.21768,2299.1,2298.6,2.32356014]
[1769967581050,0.21768,2299.1,2298.5,0.00398786]
[1769967581051,0.21768,2299.1,2298.8,10.52024578]
[1769967581247,0.21768,2299.1,2298.8,2.32356014]
[1769967581454,0.21765,2299.5,2298.9,8.19668564]
[1769967581653,1.88527131,2299.5,2298.5,2.327548]
[1769967582054,2.55916579,2299.6,2298.7,2.32356014]
[1769967582254,29.601475,2299.7,2298.7,2.32356014]
[1769967582560,0.21763,2299.6,2298.7,2.32356014]
[1769967583057,2.13910477,2300.2,2298.7,2.32356014]
[1769967583655,0.21761,2299.9,2298.7,2.32356014]
[1769967584254,0.21762,2299.8,2298.7,2.32356014]
[1769967587957,0.21764,2299.6,2298.7,2.32356014]
[1769967589864,3.32138386,2301.1,2299.8,2.32424989]
[1769967590165,2.44025785,2302.0,2299.8,2.32424989]
[1769967590166,0.21742,2301.8,2300.6,0.39892505]
[1769967590961,0.21742,2301.8,2300.6,0.40231985]
[1769967590962,0.22175323,2301.8,2300.6,0.40231985]
[1769967594258,2.74683421,2301.8,2300.7,6.601]
[1769967594565,2.74683421,2301.8,2300.8,7.995]
[1769967594970,8.6976,2301.7,2300.8,7.995]
[1769967596972,2.74683421,2301.8,2300.8,7.995]
[1769967599177,11.22268098,2301.6,2300.8,7.995]
[1769967599674,8.6976,2301.5,2300.8,7.995]
[1769967600375,2.52508098,2301.2,2300.6,0.0033948]
[1769967600578,8.6976,2301.4,2300.6,0.0033948]
[1769967600878,11.22268098,2301.4,2300.6,0.0033948]
[1769967601076,8.6976,2301.3,2300.6,0.0033948]
[1769967601275,0.00433323,2301.8,2300.6,0.0033948]
[1769967601470,2.74247098,2302.2,2300.7,2.72526007]
[1769967602072,2.52508098,2302.0,2300.7,2.72526007]
[1769967602278,2.74248098,2302.0,2300.6,0.0033948]
[1769967602479,2.74339104,2302.0,2300.6,0.0033948]
[1769967603173,2.52508098,2301.7,2300.6,0.0033948]
[1769967604180,2.74251098,2301.7,2300.6,0.0033948]
[1769967605875,2.74254098,2301.4,2300.6,0.0033948]
[1769967606182,2.74256098,2301.2,2300.2,8.302]
[1769967606984,2.52508098,2300.8,2299.0,4.13169]
[1769967607184,2.52508098,2300.4,2299.0,3.91948142]
[1769967608178,2.74264098,2300.4,2299.0,3.91948142]
[1769967609078,2.52384427,2301.6,2299.1,4.353]
[1769967609283,0.00091006,2302.0,2300.8,2.33225215]
[1769967609586,0.00091006,2302.0,2300.8,11.41357054]
[1769967609778,0.00091006,2302.0,2300.9,2.33225215]
[1769967614286,2.34343466,2302.6,2300.9,2.33225215]
[1769967615385,2.34682946,2302.6,2300.9,2.33225215]
[1769967617493,0.0033948,2302.6,2301.3,2.34014529]
[1769967618494,2.56417946,2302.6,2301.3,2.34014529]
[1769967618681,2.56417946,2302.6,2301.4,3.914]
[1769967618886,2.56417946,2302.6,2301.4,6.464]
[1769967620488,2.56417946,2302.6,2301.4,8.78210453]
[1769967620697,2.56417946,2302.6,2301.5,2.31810453]
[1769967620995,0.2207448,2302.6,2301.5,2.31810453]
[1769967622489,2.34343466,2303.5,2301.8,2.33362621]
[1769967622689,0.21725,2303.7,2301.8,2.33362621]
[1769967622893,0.21725,2303.6,2301.8,2.33362621]
[1769967623594,0.35213715,2303.9,2301.8,2.33362621]
[1769967623788,0.21733,2302.8,2301.6,2.43070393]
[1769967623989,0.21734,2302.7,2301.6,2.43070393]
[1769967624301,0.21734,2302.7,2301.5,3.913]
[1769967624302,0.21735,2302.7,2301.5,3.913]
[1769967624693,0.21735,2302.7,2301.6,2.43070393]
[1769967625092,2.56078466,2302.7,2301.6,2.43070393]
[1769967632499,2.06078466,2302.7,2301.6,2.43070393]
[1769967632892,0.21735,2302.7,2301.6,2.43070393]
[1769967634398,2.56073466,2303.1,2301.7,2.43070393]
[1769967634601,2.56075466,2302.9,2301.7,2.43070393]
[1769967634999,2.56077466,2302.7,2301.5,3.913]
[1769967635192,2.34343466,2302.5,2301.5,3.913]
[1769967636103,2.34343466,2302.5,2301.5,6.34370393]
[1769967636295,2.56080466,2302.4,2301.5,6.34370393]
[1769967637404,2.56080466,2302.4,2301.6,2.43070393]
[1769967640108,2.56080466,2302.4,2301.5,3.913]
[1769967640402,2.43144853,2302.7,2301.6,2.46868802]
[1769967640604,2.43144853,2302.7,2301.7,2.46868802]
[1769967642106,2.64878853,2302.7,2301.5,6.50207857]
[1769967642304,2.64878853,2302.7,2301.5,8.97076659]
[1769967642803,2.64878853,2302.7,2301.6,2.46868802]
[1769967647113,4.08715555,2303.3,2302.1,2.49406533]
[1769967647308,0.21722,2304.0,2302.7,4.352]
[1769967647610,0.2173,2303.2,2302.0,2.49406533]
[1769967648111,4.344,2303.1,2302.0,2.49406533]
[1769967648510,4.34819435,2303.1,2302.0,2.49914266]
[1769967649113,6.85340669,2303.1,2302.0,2.49914266]
[1769967650611,2.50521234,2303.0,2302.0,2.49914266]
[1769967651811,6.84921234,2303.0,2302.0,2.49914266]
[1769967653015,2.50521234,2302.7,2302.0,0.00507733]
[1769967653416,4.344,2302.6,2302.0,0.00507733]
[1769967658416,4.344,2302.6,2302.0,2.49914266]
[1769967660218,4.344,2302.5,2302.0,0.00507733]
[1769967660418,6.84921234,2302.5,2302.0,0.00507733]
[1769967660608,6.34921234,2302.5,2302.0,0.00507733]
[1769967661619,2.50521234,2302.4,2301.7,4.50366881]
[1769967661817,2.50521234,2302.4,2301.4,6.31906533]
[1769967662018,2.50521234,2302.3,2301.4,10.82317796]
[1769967662216,2.50521234,2302.2,2301.3,2.58907857]
[1769967662416,2.72265234,2301.7,2300.8,8.9951439]
[1769967662720,2.72265234,2301.7,2300.8,6.41006955]
[1769967662911,2.72265234,2301.7,2300.9,2.49406533]
[1769967662912,3.844,2301.7,2300.9,2.49406533]
[1769967663115,2.50521234,2302.3,2301.2,2.49406533]
[1769967663413,2.50521234,2302.8,2301.3,2.49406533]
[1769967663617,0.21731,2303.0,2301.6,2.49406533]
[1769967663921,2.72252234,2303.0,2301.6,2.49406533]
[1769967664420,2.72252234,2303.0,2301.7,2.49406533]
[1769967664620,2.72252234,2303.0,2301.9,2.49406533]
[1769967665015,3.844,2302.9,2301.9,2.49406533]
[1769967665515,2.72252234,2303.0,2301.9,2.49406533]
[1769967665721,0.00419435,2303.1,2301.9,2.49406533]
[1769967666020,2.50521234,2303.3,2302.2,2.49406533]
[1769967666218,0.21726,2303.6,2302.4,2.49406533]
[1769967666418,2.72247234,2303.6,2302.4,2.49406533]
[1769967666619,3.844,2303.5,2302.4,2.49406533]
[1769967666823,0.00377508,2303.5,2302.4,2.49406533]
[1769967667115,2.50898742,2303.5,2302.4,2.49406533]
[1769967668016,2.35870663,2303.3,2302.4,2.49406533]
[1769967668222,2.35870663,2303.3,2302.4,8.98106533]
[1769967668522,6.20270663,2303.3,2302.4,8.98106533]
[1769967668821,0.00377508,2303.5,2302.5,2.29735784]
[1769967669121,0.00377508,2303.5,2302.5,2.30208021]
[1769967669321,0.21723,2303.9,2302.6,2.29735784]
[1769967669523,0.34926243,2304.3,2302.9,2.29735784]
[1769967669820,2.70796906,2304.3,2303.0,2.29735784]
[1769967670416,2.70962785,2304.3,2303.1,2.29735784]
[1769967670611,0.00165879,2304.3,2303.2,2.29735784]
[1769967670816,2.35870663,2304.9,2303.4,2.29735784]
[1769967671212,0.21711,2305.1,2303.4,2.29735784]
[1769967671517,2.57577663,2305.6,2304.0,2.29735784]
[1769967671713,2.35870663,2305.4,2304.0,2.29735784]
[1769967672024,10.29982254,2306.5,2304.0,2.29735784]
[1769967672025,4.06102,2306.1,2304.0,2.29735784]
[1769967672221,2.35870663,2305.9,2304.0,2.29735784]
[1769967672421,2.35870663,2305.7,2304.0,2.29735784]
[1769967672621,2.35870663,2305.5,2304.0,2.29735784]
[1769967673020,2.35870663,2305.8,2304.0,2.29735784]
[1769967673217,2.35870663,2305.8,2304.1,2.29735784]
[1769967673418,2.35870663,2305.5,2304.3,2.29735784]
[1769967673624,2.35870663,2305.5,2304.5,2.29735784]
[1769967673823,3.844,2305.2,2304.5,2.29735784]
[1769967674224,3.844,2305.1,2304.5,2.29735784]
[1769967674424,3.844,2305.4,2304.5,2.29735784]
[1769967674626,3.844,2305.6,2304.5,2.29735784]
[1769967674921,2.35870663,2305.3,2304.5,2.29735784]
[1769967675326,3.844,2305.0,2304.3,0.0042383]
[1769967675525,2.35870663,2305.1,2304.3,0.0042383]
[1769967675729,3.844,2304.8,2304.3,0.0042383]
[1769967675930,3.844,2304.8,2304.3,2.30159614]
[1769967676128,2.35870663,2305.7,2304.3,2.30159614]
[1769967676321,2.57573663,2306.0,2304.3,2.30159614]
[1769967677235,0.21697,2306.6,2304.7,2.29735784]
[1769967677531,2.35870663,2306.4,2304.7,2.29735784]
[1769967678128,2.35870663,2306.8,2304.7,2.29735784]
[1769967678524,2.35870663,2306.8,2305.3,2.29735784]
[1769967678725,2.35870663,2306.8,2305.5,2.29735784]
[1769967679228,2.35870663,2307.1,2305.5,2.29735784]
[1769967679525,2.35870663,2307.4,2305.9,2.29735784]
[1769967679726,2.35870663,2307.4,2305.4,10.415]
[1769967679727,3.41562254,2308.7,2307.1,2.29735784]
[1769967679929,2.35870663,2309.2,2307.4,2.29735784]
[1769967680224,2.35870663,2309.1,2307.6,2.29735784]
[1769967680433,2.35870663,2308.4,2307.3,2.29735784]
[1769967680821,4.3352,2307.9,2307.2,3.909]
[1769967681021,2.35870663,2307.9,2307.2,3.909]
[1769967681224,0.35237895,2309.8,2307.3,2.29735784]
[1769967681428,4.43959759,2309.6,2307.6,2.29735784]
[1769967681627,0.10439759,2309.6,2307.6,2.29735784]
[1769967681828,4.3352,2309.5,2307.6,2.29735784]
[1769967682226,0.10439759,2309.6,2307.6,2.29735784]
[1769967683229,4.3352,2309.2,2307.6,2.29735784]
[1769967683423,2.35870663,2309.1,2307.6,2.29735784]
[1769967683629,6.69390663,2308.8,2307.6,2.29735784]
[1769967684028,0.21678,2308.6,2307.6,2.29735784]
[1769967684225,4.3352,2308.1,2307.2,2.29735784]
[1769967684425,4.3352,2308.2,2307.2,2.29735784]
[1769967684629,4.3352,2308.0,2307.2,2.29735784]
[1769967685024,0.21678,2308.6,2307.2,2.29735784]
[1769967685025,2.35870663,2308.5,2307.2,2.29735784]
[1769967685232,2.65039759,2309.6,2307.2,2.29735784]
[1769967685233,2.35870663,2308.8,2307.2,2.29735784]
[1769967685936,2.57546663,2308.8,2307.2,8.74835784]
[1769967686537,2.35870663,2308.6,2307.2,6.451]
[1769967686837,2.35870663,2308.6,2307.2,8.74835784]
[1769967689035,2.35870663,2308.2,2307.1,0.00326916]
[1769967689238,2.35870663,2308.0,2306.7,2.29735784]
[1769967690144,2.36197579,2308.0,2306.7,2.3005133]
[1769967690530,0.21687,2307.7,2306.7,2.3005133]
[1769967690736,0.21687,2307.7,2306.4,2.72065047]
[1769967690737,2.35870663,2307.5,2306.3,2.29735784]
[1769967690937,0.2169,2307.4,2306.3,2.29735784]
[1769967691436,2.57560663,2307.4,2306.3,2.29735784]
[1769967691744,2.57560663,2307.4,2306.3,2.30053248]
[1769967692035,2.57881579,2308.0,2306.3,2.30053248]
[1769967692539,2.35870663,2307.8,2306.4,2.29735784]
[1769967692940,2.57556663,2307.8,2306.4,2.29735784]
[1769967697843,0.21691,2307.3,2306.4,2.29735784]
[1769967698150,0.21695,2306.8,2306.0,3.904]
[1769967698547,3.904,2307.7,2305.5,50.0]
[1769967698548,0.217,2306.3,2305.5,50.0]
[1769967698741,2.28216333,2306.6,2305.5,52.50611134]
[1769967698948,2.49913333,2306.6,2305.6,2.50611134]
[1769967699247,2.49914333,2306.5,2305.6,0.00432556]
[1769967699444,2.28216333,2306.1,2305.5,47.64657198]
[1769967699743,2.28216333,2306.4,2305.5,47.64657198]
[1769967700448,2.28216333,2306.4,2305.5,47.65200243]
[1769967702250,2.49915333,2306.4,2305.5,47.65200243]
[1769967703350,0.21699,2306.4,2305.6,2.50611134]
[1769967704343,0.00365352,2306.6,2305.6,2.50611134]
[1769967706253,0.21694,2306.9,2305.8,2.45398044]
[1769967706453,2.56526955,2306.7,2305.6,7.137]
[1769967706752,0.21696,2306.7,2305.7,2.45398044]
[1769967707248,2.56526955,2306.7,2305.7,2.45398044]
[1769967707449,0.22043483,2306.7,2305.7,2.45398044]
[1769967707652,2.56521955,2307.2,2305.9,2.45398044]
[1769967707851,2.34830955,2307.0,2305.9,2.45398044]
[1769967708448,2.34830955,2307.3,2305.9,2.45398044]
[1769967708754,2.35335335,2307.3,2306.1,2.45398044]
[1769967708944,2.35335335,2307.3,2306.3,2.45398044]
[1769967709147,2.57025335,2307.3,2306.3,2.45398044]
[1769967709858,2.34830955,2307.2,2305.8,2.45398044]
[1769967710061,2.34830955,2307.2,2306.0,2.45398044]
[1769967710453,0.21693,2307.1,2306.0,2.45398044]
[1769967711362,2.56523955,2307.1,2306.0,2.45398044]
[1769967711759,0.0050438,2307.3,2306.2,2.45398044]
[1769967711954,0.0050438,2307.3,2306.0,7.05990024]
[1769967711955,0.0050438,2307.3,2306.4,2.45398044]
[1769967712264,0.0050438,2307.3,2306.6,2.45398044]
[1769967712452,2.34830955,2307.6,2306.6,2.45398044]
[1769967712660,0.21687,2307.7,2306.6,2.45398044]
[1769967713468,0.21862267,2307.7,2306.6,2.45398044]
[1769967714064,0.21691,2307.3,2306.1,2.45398044]
[1769967714269,0.21691,2307.3,2306.3,2.45398044]
[1769967714471,0.21691,2307.3,2306.5,2.45398044]
[1769967714972,0.21692,2307.2,2306.3,3.08257316]
[1769967715172,0.21692,2307.2,2306.3,2.45398044]
[1769967721880,2.56527955,2306.7,2305.7,2.45398044]
[1769967722177,0.21698,2306.5,2305.7,2.45398044]
[1769967722984,0.21694,2307.0,2305.7,2.45398044]
[1769967723677,0.2169,2307.4,2305.9,2.45398044]
[1769967724481,0.2169,2307.4,2306.0,2.45398044]
[1769967724682,0.2169,2307.4,2306.2,2.45398044]
[1769967725182,0.00175267,2307.7,2306.5,2.45398044]
[1769967725382,0.00175267,2307.7,2306.6,2.45398044]
[1769967726178,8.7888108,2308.2,2306.9,2.45398044]
[1769967726179,6.44050125,2308.2,2306.9,2.45398044]
[1769967726386,6.44050125,2308.4,2307.1,2.45398044]
[1769967727285,0.2168,2308.5,2307.1,2.45398044]
[1769967728182,2.34830955,2308.8,2307.1,2.45398044]
[1769967728384,0.21675,2309.0,2307.5,2.37138351]
[1769967728681,0.21675,2309.0,2307.7,2.37138351]
[1769967728883,2.51017844,2309.4,2307.9,2.37138351]
[1769967729183,2.72692844,2308.9,2307.9,2.37138351]
[1769967729592,0.21675,2308.9,2307.9,2.37138351]
[1769967730986,2.51017844,2309.3,2307.9,2.37138351]
[1769967731690,2.51017844,2309.3,2308.0,2.37138351]
[1769967731983,0.21673,2309.2,2308.0,2.37138351]
[1769967733087,0.10439759,2309.6,2308.0,2.37138351]
[1769967734188,0.10439759,2309.6,2308.3,2.37138351]
[1769967734985,0.10439759,2309.6,2308.4,2.37138351]
[1769967735384,2.83126603,2309.6,2308.4,2.37138351]
[1769967736088,2.51017844,2309.4,2307.6,2.37138351]
[1769967736392,2.51017844,2309.1,2307.8,2.37138351]
[1769967736892,2.51017844,2308.9,2307.8,2.37138351]
[1769967737293,2.51017844,2309.5,2307.8,2.37138351]
[1769967737489,0.32108759,2309.6,2307.8,2.37138351]
[1769967737992,2.72689844,2309.3,2307.9,2.37138351]
[1769967738389,2.51017844,2309.1,2307.9,2.37138351]
[1769967738590,0.21675,2309.0,2307.9,2.37138351]
[1769967739786,2.51017844,2309.4,2307.9,2.37138351]
[1769967740588,0.10439759,2309.6,2308.1,2.37138351]
[1769967740791,0.10439759,2309.6,2308.2,2.37138351]
[1769967740993,0.21666,2310.0,2308.5,2.37138351]
[1769967741794,2.51017844,2309.8,2308.5,2.37138351]
[1769967741995,0.2167,2309.6,2308.5,2.37138351]
[1769967742400,2.72682844,2310.0,2308.5,2.37138351]
[1769967742901,0.34797676,2310.3,2308.5,2.37138351]
[1769967742902,2.51017844,2309.4,2308.5,2.37138351]
[1769967743598,2.51017844,2309.1,2307.6,2.37138351]
[1769967743790,2.51017844,2309.1,2307.8,2.37138351]
[1769967743991,2.72685844,2309.7,2308.0,2.37138351]
[1769967744904,0.21668,2309.7,2308.2,2.37138351]
[1769967745398,0.34797676,2310.3,2308.3,3.902]
[1769967745399,2.72686844,2309.6,2308.3,3.902]